[Event "Latvijas 2022. gada jauniešu čempionāta fināls"]
[Site "Riga, Latvia"]
[Date "2022.06.15"]
[Round "7.9"]
[White "Tolmacevs, Romans"]
[Black "Steiners, Emils"]
[Result "1/2-1/2"]
[TimeControl "3600+30"]
[WhiteElo "1466"]
[BlackElo "1601"]

1. e4 {[%clk 01:01:30]} {[%emt 01:32:46]} e6 {[%clk 01:01:17]} {[%emt
00:00:13]} 2. d4 {[%clk 01:01:45]} {[%emt 00:00:14]} d5 {[%clk 01:01:40]}
{[%emt 00:00:07]} 3. Nc3 {[%clk 01:01:59]} {[%emt 00:00:16]} Bb4 {[%clk
01:02:02]} {[%emt 00:00:08]} 4. e5 {[%clk 01:02:02]} {[%emt 00:00:28]} c5
{[%clk 01:02:25]} {[%emt 00:00:07]} 5. a3 {[%clk 01:02:30]} {[%emt 00:00:02]}
Bxc3+ {[%clk 01:02:47]} {[%emt 00:00:08]} 6. bxc3 {[%clk 01:02:59]} {[%emt
00:00:01]} Ne7 {[%clk 01:03:15]} {[%emt 00:00:01]} 7. Nf3 {[%clk 01:02:47]}
{[%emt 00:00:43]} Qa5 {[%clk 01:03:34]} {[%emt 00:00:11]} 8. Bd2 {[%clk
01:02:16]} {[%emt 00:01:01]} Nbc6 {[%clk 01:03:57]} {[%emt 00:00:07]} 9. Be2
{[%clk 01:01:43]} {[%emt 00:01:03]} Bd7 {[%clk 01:04:06]} {[%emt 00:00:21]} 10.
O-O {[%clk 01:01:58]} {[%emt 00:00:16]} c4 {[%clk 01:04:32]} {[%emt 00:00:03]}
11. Qb1 {[%clk 00:57:29]} {[%emt 00:04:58]} O-O-O {[%clk 01:04:31]} {[%emt
00:00:31]} 12. Qb2 {[%clk 00:56:57]} {[%emt 00:01:03]} h6 {[%clk 01:02:54]}
{[%emt 00:02:07]} 13. a4 {[%clk 00:53:57]} {[%emt 00:03:31]} Rdg8 {[%clk
01:00:54]} {[%emt 00:02:25]} 14. Qb5 {[%clk 00:46:09]} {[%emt 00:08:21]} Qc7
{[%clk 00:59:20]} {[%emt 00:02:03]} 15. Qc5 {[%clk 00:44:57]} {[%emt 00:01:44]}
f5 {[%clk 00:52:48]} {[%emt 00:07:02]} 16. exf6 {[%clk 00:34:51]} {[%emt
00:10:36]} gxf6 {[%clk 00:53:10]} {[%emt 00:00:08]} 17. Rfe1 {[%clk 00:34:36]}
{[%emt 00:00:45]} Nf5 {[%clk 00:45:48]} {[%emt 00:07:51]} 18. Kh1 {[%clk
00:32:15]} {[%emt 00:02:51]} Qd6 {[%clk 00:41:39]} {[%emt 00:04:40]} 19. Qxd6
{[%clk 00:21:37]} {[%emt 00:11:08]} Nxd6 {[%clk 00:42:01]} {[%emt 00:00:08]} 20.
Kg1 {[%clk 00:20:30]} {[%emt 00:01:37]} Ne4 {[%clk 00:39:35]} {[%emt 00:02:56]}
21. Red1 {[%clk 00:18:57]} {[%emt 00:02:02]} b6 {[%clk 00:36:48]} {[%emt
00:03:17]} 22. Nh4 {[%clk 00:17:54]} {[%emt 00:01:33]} a5 {[%clk 00:34:15]}
{[%emt 00:03:03]} 23. Bf3 {[%clk 00:16:46]} {[%emt 00:01:39]} Nxd2 {[%clk
00:33:40]} {[%emt 00:01:05]} 24. Rxd2 {[%clk 00:17:15]} Kc7 {[%clk 00:33:49]}
{[%emt 00:00:21]} 25. g3 {[%clk 00:17:10]} {[%emt 00:00:35]} Rb8 {[%clk
00:32:41]} {[%emt 00:01:38]} 26. Rb1 {[%clk 00:15:30]} {[%emt 00:02:11]} Rb7
{[%clk 00:32:25]} {[%emt 00:00:45]} 27. Rdd1 {[%clk 00:14:38]} {[%emt
00:01:22]} Rhb8 {[%clk 00:32:03]} {[%emt 00:00:51]} 28. Ng2 {[%clk 00:12:46]}
{[%emt 00:02:23]} b5 {[%clk 00:30:59]} {[%emt 00:01:35]} 29. axb5 {[%clk
00:13:10]} {[%emt 00:00:06]} Rxb5 {[%clk 00:31:19]} {[%emt 00:00:09]} 30. Rxb5
{[%clk 00:13:13]} {[%emt 00:00:28]} Rxb5 {[%clk 00:31:40]} {[%emt 00:00:08]} 31.
Ra1 {[%clk 00:12:44]} {[%emt 00:00:59]} Na7 {[%clk 00:30:36]} {[%emt 00:01:35]}
32. Kf1 {[%clk 00:12:53]} {[%emt 00:00:20]} a4 {[%clk 00:30:47]} {[%emt
00:00:20]} 33. Ke2 {[%clk 00:11:19]} {[%emt 00:02:04]} Ra5 {[%clk 00:28:49]}
{[%emt 00:02:28]} 34. Kd2 {[%clk 00:10:57]} {[%emt 00:00:52]} a3 {[%clk
00:24:54]} {[%emt 00:04:26]} 35. Ne3 {[%clk 00:10:17]} {[%emt 00:01:10]} f5
{[%clk 00:22:47]} {[%emt 00:02:36]} 36. g4 {[%clk 00:10:07]} {[%emt 00:00:39]}
fxg4 {[%clk 00:22:38]} {[%emt 00:00:40]} 37. Nxg4 {[%clk 00:10:18]} {[%emt
00:00:19]} h5 {[%clk 00:23:03]} {[%emt 00:00:05]} 38. Ne5 {[%clk 00:09:54]}
{[%emt 00:00:53]} h4 {[%clk 00:22:54]} {[%emt 00:00:39]} 39. Ng6 {[%clk
00:09:13]} {[%emt 00:01:12]} Nb5 {[%clk 00:21:35]} {[%emt 00:01:48]} 40. Nxh4
{[%clk 00:08:02]} {[%emt 00:01:41]} a2 {[%clk 00:21:13]} {[%emt 00:00:52]} 41.
Ng6 {[%clk 00:06:03]} {[%emt 00:02:29]} Ra3 {[%clk 00:18:22]} {[%emt 00:03:22]}
42. Ne5 {[%clk 00:06:08]} {[%emt 00:00:25]} Be8 {[%clk 00:18:31]} {[%emt
00:00:19]} 43. h4 {[%clk 00:06:08]} {[%emt 00:00:32]} Nxc3 {[%clk 00:05:12]}
{[%emt 00:13:49]} 44. h5 {[%clk 00:06:22]} {[%emt 00:00:15]} Bxh5 {[%clk
00:04:34]} {[%emt 00:01:09]} 45. Bxh5 {[%clk 00:06:49]} {[%emt 00:00:02]} Nb5
{[%clk 00:04:43]} {[%emt 00:00:21]} 46. Nf3 {[%clk 00:06:39]} {[%emt 00:00:41]}
Kb6 {[%clk 00:03:14]} {[%emt 00:01:59]} 47. Kc1 {[%clk 00:06:46]} {[%emt
00:00:23]} Ka5 {[%clk 00:03:03]} {[%emt 00:00:40]} 48. Kb2 {[%clk 00:06:47]}
{[%emt 00:00:29]} c3+ {[%clk 00:03:28]} {[%emt 00:00:06]} 49. Kc1 {[%clk
00:07:14]} {[%emt 00:00:03]} Kb4 {[%clk 00:02:02]} {[%emt 00:01:56]} 50. Be8
{[%clk 00:06:52]} {[%emt 00:00:51]} Nd6 {[%clk 00:00:57]} {[%emt 00:01:34]} 51.
Bd7 {[%clk 00:06:05]} {[%emt 00:01:18]} Ne4 {[%clk 00:00:48]} {[%emt 00:00:39]}
52. Kd1 {[%clk 00:06:02]} {[%emt 00:00:33]} Nxf2+ {[%clk 00:00:41]} {[%emt
00:00:38]} 53. Ke2 {[%clk 00:06:31]} {[%emt 00:00:01]} Ne4 {[%clk 00:00:53]}
{[%emt 00:00:17]} 54. Bxe6 {[%clk 00:06:38]} {[%emt 00:00:23]} Kc4 {[%clk
00:00:47]} {[%emt 00:00:35]} 55. Ke3 {[%clk 00:06:30]} {[%emt 00:00:40]} Nf6
{[%clk 00:00:39]} {[%emt 00:00:38]} 56. Ne5+ {[%clk 00:06:17]} {[%emt
00:00:42]} Kb4 {[%clk 00:00:47]} {[%emt 00:00:18]} 57. Kd3 {[%clk 00:05:59]}
{[%emt 00:00:52]} Ra6 {[%clk 00:00:49]} {[%emt 00:00:27]} 58. Bf7 {[%clk
00:06:11]} {[%emt 00:00:19]} Ka3 {[%clk 00:00:44]} {[%emt 00:00:35]} 59. Kxc3
{[%clk 00:05:59]} {[%emt 00:00:43]} Ne4 {[%clk 00:01:03]} {[%emt 00:00:12]} 60.
Kd3 {[%clk 00:06:09]} {[%emt 00:00:20]} Kb2 {[%clk 00:01:27]} {[%emt 00:00:05]}
61. Rxa2+ {[%clk 00:06:36]} {[%emt 00:00:03]} Rxa2 {[%clk 00:00:52]} {[%emt
00:01:05]} 62. Bxd5 {[%clk 00:06:42]} {[%emt 00:00:24]} Nf2+ {[%clk 00:00:56]}
{[%emt 00:00:26]} 63. Ke2 {[%clk 00:07:06]} {[%emt 00:00:06]} Ra4 {[%clk
00:00:51]} {[%emt 00:00:35]} 64. Nc4+ {[%clk 00:07:02]} {[%emt 00:00:34]} Kxc2
{[%clk 00:01:00]} {[%emt 00:00:21]} 65. Kxf2 {[%clk 00:07:29]} {[%emt
00:00:02]} Kc3 {[%clk 00:01:09]} {[%emt 00:00:22]} 66. Ke3 {[%clk 00:07:51]}
{[%emt 00:00:08]} Ra1 {[%clk 00:00:45]} {[%emt 00:00:53]} 67. Ne5 {[%clk
00:05:58]} {[%emt 00:02:23]} Re1 {[%clk 00:00:58]} {[%emt 00:00:18]} 68. Kf2
{[%clk 00:06:26]} {[%emt 00:00:02]} Kxd4 {[%clk 00:01:04]} {[%emt 00:00:23]} 69.
Kxe1 {[%clk 00:06:50]} {[%emt 00:00:06]} Kxd5 {[%emt 00:01:14]} 1/2-1/2

[Event "Latvijas 2022. gada jauniešu čempionāta fināls"]
[Site "Riga, Latvia"]
[Date "2022.06.15"]
[Round "7.10"]
[White "Liepina, Daniela,Nikola"]
[Black "Jansone, Melanija Luize"]
[Result "0-1"]
[TimeControl "3600+30"]
[WhiteElo "1082"]
[BlackElo "1590"]

1. e4 {[%clk 01:00:58]} d6 {[%clk 01:00:54]} {[%emt 00:00:07]} 2. Nf3 {[%clk
01:01:21]} {[%emt 00:00:07]} Nf6 {[%clk 01:01:17]} {[%emt 00:00:05]} 3. Nc3
{[%clk 01:01:44]} {[%emt 00:00:09]} c5 {[%clk 01:01:40]} {[%emt 00:00:07]} 4.
d4 {[%clk 01:01:49]} {[%emt 00:00:25]} cxd4 {[%clk 01:02:06]} {[%emt 00:00:04]}
5. Nxd4 {[%clk 01:02:10]} {[%emt 00:00:08]} g6 {[%clk 01:02:31]} {[%emt
00:00:06]} 6. Be2 {[%clk 01:02:22]} {[%emt 00:00:18]} Bg7 {[%clk 01:02:56]}
{[%emt 00:00:05]} 7. O-O {[%clk 01:02:32]} {[%emt 00:00:20]} O-O {[%clk
01:03:20]} {[%emt 00:00:06]} 8. f4 {[%clk 01:02:03]} {[%emt 00:01:00]} Nc6
{[%clk 01:03:44]} {[%emt 00:00:06]} 9. Be3 {[%clk 01:02:10]} {[%emt 00:00:22]}
Bd7 {[%clk 01:04:02]} {[%emt 00:00:12]} 10. a3 {[%clk 01:01:02]} {[%emt
00:01:39]} a6 {[%clk 01:04:19]} {[%emt 00:00:12]} 11. h3 {[%clk 00:59:36]}
{[%emt 00:01:55]} Rc8 {[%clk 01:04:31]} {[%emt 00:00:18]} 12. Qd2 {[%clk
00:56:56]} {[%emt 00:03:11]} b5 {[%clk 01:04:08]} {[%emt 00:00:52]} 13. b4
{[%clk 00:53:02]} {[%emt 00:04:24]} Qc7 {[%clk 01:04:03]} {[%emt 00:00:35]} 14.
Bf3 {[%clk 00:51:22]} {[%emt 00:02:11]} Rfd8 {[%clk 00:57:39]} {[%emt
00:06:54]} 15. Rfd1 {[%clk 00:46:14]} {[%emt 00:05:38]} Nxd4 {[%clk 00:52:08]}
{[%emt 00:06:01]} 16. Bxd4 {[%clk 00:46:25]} {[%emt 00:00:18]} Bc6 {[%clk
00:51:51]} {[%emt 00:00:48]} 17. Rac1 {[%clk 00:43:11]} {[%emt 00:03:43]} Bb7
{[%clk 00:44:27]} {[%emt 00:07:54]} 18. Nd5 {[%clk 00:39:14]} {[%emt 00:04:27]}
Bxd5 {[%clk 00:44:38]} {[%emt 00:00:20]} 19. exd5 {[%clk 00:39:34]} {[%emt
00:00:10]} Qc4 {[%clk 00:42:49]} {[%emt 00:02:19]} 20. Bf2 {[%clk 00:32:43]}
{[%emt 00:07:19]} Qa2 {[%clk 00:32:00]} {[%emt 00:11:21]} 21. Qd3 {[%clk
00:25:00]} {[%emt 00:08:12]} Rd7 {[%clk 00:26:37]} {[%emt 00:05:55]} 22. Rd2
{[%clk 00:18:32]} {[%emt 00:06:57]} Qc4 {[%clk 00:24:43]} {[%emt 00:02:23]} 23.
Qxc4 {[%clk 00:14:06]} {[%emt 00:04:56]} Rxc4 {[%clk 00:24:05]} {[%emt
00:01:09]} 24. Bg3 {[%clk 00:12:24]} {[%emt 00:02:12]} Ne4 {[%clk 00:23:09]}
{[%emt 00:01:26]} 25. Bxe4 {[%clk 00:12:19]} {[%emt 00:00:35]} Rxe4 {[%clk
00:23:37]} {[%emt 00:00:02]} 26. c3 {[%clk 00:12:15]} {[%emt 00:00:34]} Rc7
{[%clk 00:23:38]} {[%emt 00:00:28]} 27. Rd3 {[%clk 00:12:30]} {[%emt 00:00:16]}
Rec4 {[%clk 00:23:36]} {[%emt 00:00:32]} 28. Be1 {[%clk 00:10:50]} {[%emt
00:02:09]} Rxf4 {[%clk 00:23:32]} {[%emt 00:00:34]} 29. Bd2 {[%clk 00:10:32]}
{[%emt 00:00:49]} Rfc4 {[%clk 00:23:51]} {[%emt 00:00:11]} 30. Kf2 {[%clk
00:09:18]} {[%emt 00:01:43]} Bf6 {[%clk 00:21:27]} {[%emt 00:02:54]} 31. g4
{[%clk 00:08:02]} {[%emt 00:01:46]} Kg7 {[%clk 00:20:56]} {[%emt 00:01:02]} 32.
g5 {[%clk 00:07:46]} {[%emt 00:00:46]} Be5 {[%clk 00:21:09]} {[%emt 00:00:17]}
33. Kg2 {[%clk 00:07:00]} {[%emt 00:01:14]} f6 {[%clk 00:11:33]} {[%emt
00:10:07]} 34. gxf6+ {[%clk 00:05:23]} {[%emt 00:02:07]} exf6 {[%clk 00:11:59]}
{[%emt 00:00:05]} 35. Kh1 {[%clk 00:03:55]} {[%emt 00:01:57]} g5 {[%clk
00:11:21]} {[%emt 00:01:09]} 36. Rf3 {[%clk 00:03:19]} {[%emt 00:01:06]} Kg6
{[%clk 00:10:49]} {[%emt 00:01:03]} 37. Kg2 {[%clk 00:02:16]} {[%emt 00:01:32]}
h5 {[%clk 00:10:13]} {[%emt 00:01:06]} 38. Be1 {[%clk 00:00:56]} {[%emt
00:01:50]} g4 {[%clk 00:09:57]} {[%emt 00:00:47]} 39. hxg4 {[%clk 00:00:42]}
{[%emt 00:00:43]} hxg4 {[%clk 00:10:24]} {[%emt 00:00:03]} 40. Rd3 {[%clk
00:00:35]} {[%emt 00:00:37]} f5 {[%clk 00:09:35]} {[%emt 00:01:19]} 41. Bg3
{[%clk 00:00:36]} {[%emt 00:00:28]} f4 {[%clk 00:09:09]} {[%emt 00:00:57]} 42.
Be1 {[%clk 00:00:33]} {[%emt 00:00:33]} Kf5 {[%clk 00:09:25]} {[%emt 00:00:14]}
0-1

[Event "Latvijas 2022. gada jauniešu čempionāta fināls"]
[Site "Riga, Latvia"]
[Date "2022.06.15"]
[Round "7.11"]
[White "Kuznecova, Marija"]
[Black "Sinicina, Jevgenija"]
[Result "1-0"]
[TimeControl "3600+30"]
[WhiteElo "1783"]
[BlackElo "1231"]

1. e4 {[%clk 01:00:59]} e5 {[%clk 01:00:56]} {[%emt 00:00:05]} 2. Nf3 {[%clk
01:01:25]} {[%emt 00:00:04]} Nf6 {[%clk 01:01:21]} {[%emt 00:00:05]} 3. Nxe5
{[%clk 01:01:47]} {[%emt 00:00:07]} d6 {[%clk 01:01:44]} {[%emt 00:00:08]} 4.
Nf3 {[%clk 01:02:11]} {[%emt 00:00:06]} Nxe4 {[%clk 01:02:01]} {[%emt
00:00:12]} 5. d4 {[%clk 01:02:35]} {[%emt 00:00:06]} d5 {[%clk 01:02:25]}
{[%emt 00:00:07]} 6. Bd3 {[%clk 01:03:00]} {[%emt 00:00:04]} Bd6 {[%clk
01:02:44]} {[%emt 00:00:12]} 7. O-O {[%clk 01:03:12]} {[%emt 00:00:17]} O-O
{[%clk 01:03:10]} {[%emt 00:00:04]} 8. c4 {[%clk 01:04:03]} {[%emt 00:00:09]}
c6 {[%clk 01:04:00]} {[%emt 00:00:10]} 9. Nc3 {[%clk 01:02:23]} {[%emt
00:02:10]} Bf5 {[%clk 01:03:30]} {[%emt 00:00:59]} 10. cxd5 {[%clk 01:01:46]}
{[%emt 00:01:09]} cxd5 {[%clk 01:03:51]} {[%emt 00:00:08]} 11. Qc2 {[%clk
01:01:32]} {[%emt 00:00:44]} Re8 {[%clk 01:02:48]} {[%emt 00:01:32]} 12. Re1
{[%clk 01:00:45]} {[%emt 00:01:18]} Nc6 {[%clk 01:01:28]} {[%emt 00:01:51]} 13.
a3 {[%clk 00:59:17]} {[%emt 00:01:58]} Rc8 {[%clk 01:01:11]} {[%emt 00:00:46]}
14. Be3 {[%clk 00:57:06]} {[%emt 00:02:41]} h6 {[%clk 01:00:27]} {[%emt
00:01:14]} 15. Kh1 {[%clk 00:54:07]} {[%emt 00:03:29]} Bb8 {[%clk 00:58:30]}
{[%emt 00:02:22]} 16. Nd2 {[%clk 00:51:05]} {[%emt 00:03:37]} Qh4 {[%clk
00:55:16]} {[%emt 00:03:45]} 17. Nf3 {[%clk 00:46:14]} {[%emt 00:05:20]} Qd8
{[%clk 00:54:09]} {[%emt 00:01:37]} 18. Kg1 {[%clk 00:38:34]} {[%emt 00:08:11]}
Bh7 {[%clk 00:49:33]} {[%emt 00:05:06]} 19. Nd2 {[%clk 00:36:12]} {[%emt
00:02:52]} Qd6 {[%clk 00:45:49]} {[%emt 00:04:13]} 20. g3 {[%clk 00:34:05]}
{[%emt 00:02:37]} Nf6 {[%clk 00:42:14]} {[%emt 00:04:06]} 21. Bxh7+ {[%clk
00:31:15]} {[%emt 00:03:19]} Nxh7 {[%clk 00:42:29]} {[%emt 00:00:15]} 22. Qf5
{[%clk 00:30:57]} {[%emt 00:00:47]} Ne7 {[%clk 00:42:09]} {[%emt 00:00:51]} 23.
Qf3 {[%clk 00:30:49]} {[%emt 00:00:38]} Nf6 {[%clk 00:41:22]} {[%emt 00:01:18]}
24. Rac1 {[%clk 00:28:50]} {[%emt 00:02:28]} Qd7 {[%clk 00:37:21]} {[%emt
00:04:31]} 25. Bxh6 {[%clk 00:27:43]} {[%emt 00:01:37]} Qh3 {[%clk 00:34:40]}
{[%emt 00:03:11]} 26. Bg5 {[%clk 00:26:15]} {[%emt 00:01:58]} Nf5 {[%clk
00:30:27]} {[%emt 00:04:42]} 27. Bxf6 {[%clk 00:24:10]} {[%emt 00:02:36]} gxf6
{[%clk 00:30:35]} {[%emt 00:00:22]} 28. Nb3 {[%clk 00:20:11]} {[%emt 00:04:29]}
Nh4 {[%clk 00:28:10]} {[%emt 00:02:55]} 29. Qxd5 {[%clk 00:19:04]} {[%emt
00:01:38]} Qg4 {[%clk 00:26:57]} {[%emt 00:01:42]} 30. Re4 {[%clk 00:14:54]}
{[%emt 00:04:40]} Rxe4 {[%clk 00:24:00]} {[%emt 00:03:27]} 31. Qxe4 {[%clk
00:15:02]} {[%emt 00:00:23]} Nf3+ {[%clk 00:23:08]} {[%emt 00:01:21]} 32. Kg2
{[%clk 00:14:52]} {[%emt 00:00:40]} Nh4+ {[%clk 00:22:39]} {[%emt 00:00:59]} 33.
Kh1 {[%clk 00:14:58]} {[%emt 00:00:25]} Qf3+ {[%clk 00:21:11]} {[%emt
00:01:56]} 34. Qxf3 {[%clk 00:14:00]} {[%emt 00:01:30]} Nxf3 {[%clk 00:21:30]}
{[%emt 00:00:10]} 35. Kg2 {[%clk 00:13:50]} {[%emt 00:00:40]} Ng5 {[%clk
00:21:12]} {[%emt 00:00:48]} 36. Re1 {[%clk 00:12:48]} {[%emt 00:01:32]} Ne6
{[%clk 00:21:01]} {[%emt 00:00:41]} 37. f4 {[%clk 00:12:32]} {[%emt 00:00:46]}
b6 {[%clk 00:20:28]} {[%emt 00:01:03]} 38. f5 {[%clk 00:11:28]} {[%emt
00:01:35]} Nc7 {[%clk 00:20:19]} {[%emt 00:00:38]} 39. Kf3 {[%clk 00:10:22]}
{[%emt 00:01:35]} Rd8 {[%clk 00:19:34]} {[%emt 00:01:16]} 40. Re4 {[%clk
00:10:11]} {[%emt 00:00:41]} b5 {[%clk 00:19:34]} {[%emt 00:00:30]} 41. Na5
{[%clk 00:09:54]} {[%emt 00:00:47]} Re8 {[%clk 00:19:19]} {[%emt 00:00:45]} 42.
Rxe8+ {[%clk 00:09:48]} {[%emt 00:00:37]} Nxe8 {[%clk 00:19:33]} {[%emt
00:00:16]} 43. Nc6 {[%clk 00:10:11]} {[%emt 00:00:06]} Bc7 {[%clk 00:19:37]}
{[%emt 00:00:22]} 44. Nxb5 {[%clk 00:10:20]} {[%emt 00:00:26]} Bb6 {[%clk
00:19:49]} {[%emt 00:00:18]} 45. Ncxa7 {[%clk 00:10:33]} {[%emt 00:00:17]} Bxa7
{[%clk 00:19:48]} {[%emt 00:00:30]} 46. Nxa7 {[%clk 00:11:01]} {[%emt
00:00:02]} 1-0

[Event "Latvijas 2022. gada jauniešu čempionāta fināls"]
[Site "Riga, Latvia"]
[Date "2022.06.15"]
[Round "7.17"]
[White "Nazarovs, Daniils"]
[Black "Krakops, Martijs"]
[Result "0-1"]
[TimeControl "3600+30"]
[WhiteElo "1245"]
[BlackElo "1253"]

1. e4 {[%clk 01:00:57]} {[%emt 00:00:02]} e6 {[%clk 01:00:55]} {[%emt
00:00:06]} 2. d4 {[%clk 01:01:21]} {[%emt 00:00:06]} d5 {[%clk 01:01:20]}
{[%emt 00:00:04]} 3. Nc3 {[%clk 01:01:48]} {[%emt 00:00:05]} dxe4 {[%clk
01:01:38]} {[%emt 00:00:11]} 4. Nxe4 {[%clk 01:02:07]} {[%emt 00:00:11]} Bd7
{[%clk 01:02:05]} {[%emt 00:00:04]} 5. a3 {[%clk 01:00:34]} {[%emt 00:02:02]}
Bc6 {[%clk 01:02:17]} {[%emt 00:00:18]} 6. Nc3 {[%clk 01:00:34]} {[%emt
00:00:31]} Nf6 {[%clk 01:02:26]} {[%emt 00:00:21]} 7. Bb5 {[%clk 00:59:18]}
{[%emt 00:01:45]} Bd6 {[%clk 01:02:27]} {[%emt 00:00:27]} 8. Bg5 {[%clk
00:58:41]} {[%emt 00:01:09]} O-O {[%clk 01:02:25]} {[%emt 00:00:31]} 9. Bxc6
{[%clk 00:58:21]} {[%emt 00:00:52]} Nxc6 {[%clk 01:02:49]} {[%emt 00:00:06]} 10.
Nf3 {[%clk 00:57:26]} {[%emt 00:01:25]} Re8 {[%clk 01:01:51]} {[%emt 00:01:28]}
11. O-O {[%clk 00:56:54]} {[%emt 00:01:01]} h6 {[%clk 01:01:15]} {[%emt
00:01:05]} 12. Bh4 {[%clk 00:56:24]} {[%emt 00:01:01]} Be7 {[%clk 01:01:07]}
{[%emt 00:00:38]} 13. Re1 {[%clk 00:48:12]} {[%emt 00:08:42]} Nd5 {[%clk
00:58:20]} {[%emt 00:03:16]} 14. Bxe7 {[%clk 00:46:57]} {[%emt 00:01:46]} Rxe7
{[%clk 00:58:39]} {[%emt 00:00:11]} 15. Ne4 {[%clk 00:46:50]} {[%emt 00:00:38]}
b5 {[%clk 00:52:50]} {[%emt 00:06:19]} 16. Nc5 {[%clk 00:40:00]} {[%emt
00:07:20]} Rb8 {[%clk 00:50:06]} {[%emt 00:03:15]} 17. Ne5 {[%clk 00:37:34]}
{[%emt 00:02:55]} Nxe5 {[%clk 00:49:58]} {[%emt 00:00:38]} 18. dxe5 {[%clk
00:34:45]} {[%emt 00:03:20]} c6 {[%clk 00:48:51]} {[%emt 00:01:36]} 19. Qf3
{[%clk 00:33:19]} {[%emt 00:01:47]} Qb6 {[%clk 00:48:43]} {[%emt 00:00:46]} 20.
Ne4 {[%clk 00:33:16]} {[%emt 00:00:28]} Qd4 {[%clk 00:46:52]} {[%emt 00:02:26]}
21. Nc3 {[%clk 00:29:52]} {[%emt 00:03:55]} Nxc3 {[%clk 00:46:14]} {[%emt
00:01:08]} 22. bxc3 {[%clk 00:29:34]} {[%emt 00:00:49]} Qc5 {[%clk 00:46:14]}
{[%emt 00:00:30]} 23. Red1 {[%clk 00:28:22]} {[%emt 00:01:41]} Qxe5 {[%clk
00:44:17]} {[%emt 00:01:16]} 24. Qxc6 {[%clk 00:28:07]} {[%emt 00:01:55]} Rc7
{[%emt 00:01:59]} 25. Qf3 {[%clk 00:26:36]} {[%emt 00:00:34]} Rxc3 {[%clk
00:43:56]} {[%emt 00:00:51]} 26. Re1 {[%clk 00:24:15]} {[%emt 00:02:51]} Qc5
{[%clk 00:42:12]} {[%emt 00:02:13]} 27. Qf4 {[%clk 00:23:42]} {[%emt 00:01:03]}
Rc8 {[%clk 00:42:24]} {[%emt 00:00:18]} 28. Re5 {[%clk 00:22:03]} {[%emt
00:02:09]} Qd6 {[%clk 00:41:31]} {[%emt 00:01:23]} 29. g3 {[%clk 00:21:18]}
{[%emt 00:01:15]} R8c4 {[%clk 00:39:35]} {[%emt 00:02:26]} 30. Re4 {[%clk
00:20:33]} {[%emt 00:01:15]} Qxf4 {[%clk 00:39:36]} {[%emt 00:00:30]} 31. Rxf4
{[%clk 00:20:54]} {[%emt 00:00:09]} Rxf4 {[%clk 00:40:01]} {[%emt 00:00:05]} 32.
gxf4 {[%clk 00:21:16]} {[%emt 00:00:07]} Rxc2 {[%clk 00:40:21]} {[%emt
00:00:10]} 33. Rb1 {[%clk 00:21:21]} {[%emt 00:00:25]} a6 {[%clk 00:40:38]}
{[%emt 00:00:13]} 34. Rb3 {[%clk 00:21:18]} {[%emt 00:00:33]} Rc4 {[%clk
00:40:46]} {[%emt 00:00:23]} 35. Rf3 {[%clk 00:21:38]} {[%emt 00:00:09]} g6
{[%clk 00:40:57]} {[%emt 00:00:19]} 36. Kg2 {[%clk 00:22:03]} {[%emt 00:00:05]}
Kg7 {[%clk 00:41:14]} {[%emt 00:00:13]} 37. Kg3 {[%clk 00:22:29]} {[%emt
00:00:04]} Kf6 {[%clk 00:41:35]} {[%emt 00:00:09]} 38. Rd3 {[%clk 00:22:49]}
{[%emt 00:00:10]} Ra4 {[%clk 00:41:41]} {[%emt 00:00:25]} 39. Re3 {[%clk
00:23:01]} {[%emt 00:00:17]} g5 {[%clk 00:41:42]} {[%emt 00:00:29]} 40. fxg5+
{[%clk 00:23:05]} {[%emt 00:00:26]} hxg5 {[%clk 00:42:08]} {[%emt 00:00:04]} 41.
h3 {[%clk 00:23:02]} {[%emt 00:00:33]} e5 {[%clk 00:42:11]} {[%emt 00:00:27]}
42. Rd3 {[%clk 00:22:55]} {[%emt 00:00:36]} Kg6 {[%clk 00:41:52]} {[%emt
00:00:50]} 43. Rd6+ {[%clk 00:22:09]} {[%emt 00:01:16]} f6 {[%clk 00:42:15]}
{[%emt 00:00:07]} 44. Rd3 {[%clk 00:22:30]} {[%emt 00:00:09]} e4 {[%clk
00:42:16]} {[%emt 00:00:28]} 45. Rb3 {[%clk 00:22:33]} {[%emt 00:00:26]} f5
{[%clk 00:42:30]} {[%emt 00:00:17]} 46. Rc3 {[%clk 00:22:31]} {[%emt 00:00:26]}
Kh5 {[%clk 00:42:50]} {[%emt 00:00:15]} 47. f4 {[%clk 00:22:27]} {[%emt
00:00:34]} Rc4 {[%clk 00:42:42]} {[%emt 00:00:40]} 48. Rb3 {[%clk 00:22:15]}
{[%emt 00:00:42]} e3 {[%clk 00:41:43]} {[%emt 00:01:28]} 49. Rxe3 {[%clk
00:21:28]} {[%emt 00:01:17]} gxf4+ {[%clk 00:42:01]} {[%emt 00:00:12]} 0-1